fUST/lending_fUST_20240726
["ID","MTS","AMOUNT","RATE_DAILY","PERIOD"]
[333215763,1721950247661,-500.0,0.00013698,2]
[333215765,1721950247672,-500.0,0.00013698,2]
[333215767,1721950247681,-230.04448136,0.00013698,2]
[333215769,1721950247691,-500.0,0.00013698,2]
[333215771,1721950247701,-665.29271323,0.00013698,2]
[333215773,1721950247712,-665.29271323,0.00013698,2]
[333215775,1721950247722,-500.0,0.00013698,2]
[333215777,1721950247732,-461.47561502,0.00013698,2]
[333215779,1721950247746,-665.29271323,0.00013698,2]
[333215781,1721950247754,-665.29271323,0.00013698,2]
[333215783,1721950247764,-1167.61,0.00013698,2]
[333215785,1721950247773,-665.29271323,0.00013698,2]
[333215787,1721950247783,-665.29271323,0.00013698,2]
[333215789,1721950247792,-500.0,0.00013698,2]
[333215791,1721950247802,-500.0,0.00013698,2]
[333215793,1721950247814,-3000.0,0.00013699,2]
[333215795,1721950247823,-406.76703,0.00013699,2]
[333215796,1721950247833,-150.112233,0.000137,2]
[333215797,1721950247844,-150.112233,0.000137,2]
[333215798,1721950247856,-151.0,0.0001374,2]
[333215799,1721950247866,-151.0,0.00013779,2]
[333215800,1721950247878,-150.112233,0.000138,2]
[333215801,1721950247888,-151.0,0.00013961,2]
[333215802,1721950247899,-165.235471,0.00013962,2]
[333215803,1721950247910,-165.235471,0.00013962,2]
[333215804,1721950247920,-165.235471,0.00013972,2]
[333215805,1721950247930,-165.235471,0.00013972,2]
[333215806,1721950247940,-165.235471,0.00013972,2]
[333215807,1721950247950,-165.235471,0.00013972,2]
[333215808,1721950247964,-165.235471,0.00013972,2]
[333215810,1721950247974,-165.235467,0.00013972,2]
[333215811,1721950247983,-151.0,0.00013972,2]
[333215813,1721950247993,-151.0,0.00013972,2]
[333215815,1721950248003,-500.0,0.00013972,2]
[333215817,1721950248012,-500.0,0.00013972,2]
[333215819,1721950248022,-500.0,0.00013972,2]
[333215822,1721950248032,-536.0,0.00013972,2]
[333215824,1721950248042,-500.0,0.00013972,2]
[333215826,1721950248051,-500.0,0.00013972,2]
[333215828,1721950248062,-500.0,0.00013972,2]
[333215830,1721950248072,-881.29,0.00013972,2]
[333215832,1721950248081,-500.0,0.00013972,2]
[333215834,1721950248092,-500.0,0.00013972,2]
[333215836,1721950248102,-525.45,0.00013972,2]
[333215838,1721950248112,-517.98,0.00013972,2]
[333215840,1721950248122,-500.0,0.00013972,2]
[333215842,1721950248132,-500.0,0.00013972,2]
[333215844,1721950248143,-500.0,0.00013972,2]
[333215846,1721950248154,-504.16219307,0.00013972,2]
[333215848,1721950248164,-500.0,0.00013972,2]
[333215850,1721950248174,-500.0,0.00013972,2]
[333215852,1721950248185,-500.0,0.00013972,2]
[333215854,1721950248195,-500.0,0.00013972,2]
[333215857,1721950248209,-500.0,0.00013972,2]
[333215859,1721950248219,-500.0,0.00013972,2]
[333215861,1721950248230,-500.0,0.00013972,2]
[333215863,1721950248240,-500.0,0.00013972,2]
[333215865,1721950248250,-612.57,0.00013972,2]
[333215867,1721950248259,-500.0,0.00013972,2]
[333215869,1721950248269,-655.44,0.00013972,2]
[333215871,1721950248278,-805.41,0.00013972,2]
[333215873,1721950248287,-500.0,0.00013972,2]
[333215875,1721950248297,-634.54,0.00013972,2]
[333215877,1721950248308,-500.0,0.00013972,2]
[333215879,1721950248320,-151.14658865,0.00013972,2]
[333215881,1721950248330,-500.0,0.00013972,2]
[333215883,1721950248340,-500.0,0.00013972,2]
[333215886,1721950248351,-500.0,0.00013972,2]
[333215888,1721950248361,-384.35021531,0.00013972,2]
[333215890,1721950248371,-589.76,0.00013972,2]
[333215892,1721950248383,-500.0,0.00013972,2]
[333215894,1721950248392,-500.0,0.00013972,2]
[333215896,1721950248403,-500.0,0.00013972,2]
[333215898,1721950248412,-619.39231752,0.00013972,2]
[333215900,1721950248424,-968.18,0.00013972,2]
[333215902,1721950248434,-500.0,0.00013972,2]
[333215905,1721950248444,-500.0,0.00013972,2]
[333215907,1721950248456,-654.74,0.00013972,2]
[333215909,1721950248467,-500.0,0.00013972,2]
[333215911,1721950248477,-500.0,0.00013972,2]
[333215913,1721950248487,-500.0,0.00013972,2]
[333215915,1721950248498,-1129.43,0.00013972,2]
[333215917,1721950248509,-926.47,0.00013972,2]
[333215919,1721950248519,-271.46926943,0.00013972,2]
[333215921,1721950248530,-500.0,0.00013972,2]
[333215923,1721950248546,-500.0,0.00013972,2]
[333215926,1721950248558,-500.0,0.00013972,2]
[333215928,1721950248568,-500.0,0.00013972,2]
[333215930,1721950248580,-500.0,0.00013972,2]
[333215932,1721950248590,-500.0,0.00013972,2]
[333215934,1721950248601,-500.0,0.00013972,2]
[333215937,1721950248612,-500.0,0.00013972,2]
[333215939,1721950248622,-918.54,0.00013972,2]
[333215940,1721950248632,-500.0,0.00013972,2]
[333215943,1721950248642,-500.0,0.00013972,2]
[333215945,1721950248652,-500.0,0.00013972,2]
[333215947,1721950248662,-500.0,0.00013972,2]
[333215949,1721950248671,-1411.64,0.00013972,2]
[333215950,1721950248681,-500.0,0.00013972,2]
[333215952,1721950248691,-622.24557272,0.00013972,2]
[333215954,1721950248701,-500.0,0.00013972,2]
[333215956,1721950248712,-706.06,0.00013972,2]
[333215958,1721950248721,-595.92,0.00013972,2]
[333215960,1721950248730,-904.91,0.00013972,2]
[333215962,1721950248739,-500.0,0.00013972,2]
[333215964,1721950248750,-500.0,0.00013972,2]
[333215966,1721950248761,-592.93,0.00013972,2]
[333215968,1721950248770,-500.0,0.00013972,2]
[333215970,1721950248780,-500.0,0.00013972,2]
[333215972,1721950248790,-500.0,0.00013972,2]
[333215974,1721950248800,-500.0,0.00013972,2]
[333215976,1721950248809,-500.0,0.00013972,2]
[333215978,1721950248819,-500.0,0.00013972,2]
[333215980,1721950248830,-889.21,0.00013972,2]
[333215982,1721950248839,-500.0,0.00013972,2]
[333215984,1721950248849,-258.05509899,0.00013972,2]
[333215986,1721950248859,-500.0,0.00013972,2]
[333215988,1721950248868,-568.19,0.00013972,2]
[333215990,1721950248878,-500.0,0.00013972,2]
[333215992,1721950248887,-500.0,0.00013972,2]
[333215994,1721950248898,-500.0,0.00013972,2]
[333215996,1721950248908,-600.77,0.00013972,2]
[333215998,1721950248919,-869.46,0.00013972,2]
[333216001,1721950248930,-500.0,0.00013972,2]
[333216003,1721950248942,-500.0,0.00013972,2]
[333216005,1721950248952,-743.26,0.00013972,2]
[333216007,1721950248962,-500.0,0.00013972,2]
[333216009,1721950248972,-591.89,0.00013972,2]
[333216011,1721950248982,-500.0,0.00013972,2]
[333216013,1721950248992,-500.0,0.00013972,2]
[333216015,1721950249003,-500.0,0.00013972,2]
[333216017,1721950249014,-500.0,0.00013972,2]
[333216019,1721950249025,-500.0,0.00013972,2]
[333216021,1721950249035,-668.99,0.00013972,2]
[333216023,1721950249045,-500.0,0.00013972,2]
[333216025,1721950249056,-523.88,0.00013972,2]
[333216027,1721950249066,-827.49,0.00013972,2]
[333216029,1721950249076,-1049.66,0.00013972,2]
[333216031,1721950249086,-500.0,0.00013972,2]
[333216033,1721950249096,-555.68,0.00013972,2]
[333216035,1721950249105,-500.0,0.00013972,2]
[333216037,1721950249116,-500.0,0.00013972,2]
[333216039,1721950249127,-500.0,0.00013972,2]
[333216041,1721950249136,-500.0,0.00013972,2]
[333216043,1721950249147,-912.87,0.00013972,2]
[333216045,1721950249156,-1194.17,0.00013972,2]
[333216047,1721950249168,-1811.12,0.00013972,2]
[333216049,1721950249178,-500.0,0.00013972,2]
[333216050,1721950249188,-500.0,0.00013972,2]
[333216051,1721950249199,-500.0,0.00013972,2]
[333216052,1721950249209,-500.0,0.00013972,2]
[333216053,1721950249218,-580.38,0.00013972,2]
[333216054,1721950249227,-500.0,0.00013972,2]
[333216055,1721950249237,-500.0,0.00013972,2]
[333216056,1721950249248,-500.0,0.00013972,2]
[333216057,1721950249257,-545.35,0.00013972,2]
[333216058,1721950249268,-500.0,0.00013972,2]
[333216059,1721950249279,-583.84,0.00013972,2]
[333216060,1721950249289,-500.0,0.00013972,2]
[333216061,1721950249299,-1158.17,0.00013972,2]
[333216062,1721950249310,-658.3,0.00013972,2]
[333216063,1721950249320,-1356.49,0.00013972,2]
[333216064,1721950249331,-836.95,0.00013972,2]
[333216065,1721950249340,-500.0,0.00013972,2]
[333216066,1721950249350,-500.0,0.00013972,2]
[333216067,1721950249361,-1043.44,0.00013972,2]
[333216068,1721950249372,-772.12,0.00013972,2]
[333216069,1721950249382,-980.8,0.00013972,2]
[333216070,1721950249392,-500.0,0.00013972,2]
[333216071,1721950249402,-500.0,0.00013972,2]
[333216072,1721950249412,-730.91,0.00013972,2]
[333216073,1721950249422,-500.0,0.00013972,2]
[333216074,1721950249432,-500.0,0.00013972,2]
[333216075,1721950249442,-500.0,0.00013972,2]
[333216076,1721950249452,-500.0,0.00013972,2]
[333216077,1721950249463,-2232.57,0.00013972,2]
[333216078,1721950249472,-2118.18,0.00013972,2]
[333216079,1721950249482,-1024.46,0.00013972,2]
[333216080,1721950249491,-500.0,0.00013972,2]
[333216081,1721950249503,-1081.15,0.00013972,2]
[333216082,1721950249515,-4921.26,0.00013972,2]
[333216083,1721950249525,-500.0,0.00013972,2]
[333216084,1721950249540,-765.22,0.00013972,2]
[333216085,1721950249551,-500.0,0.00013972,2]
[333216086,1721950249562,-500.0,0.00013972,2]
[333216087,1721950249572,-264.24634082,0.00013972,2]
[333216088,1721950249583,-1101.69,0.00013972,2]
[333216089,1721950249595,-1167.96,0.00013972,2]
[333216090,1721950249606,-506.1306222,0.00013972,2]
[333216091,1721950249616,-892.29,0.00013972,2]
[333216092,1721950249627,-500.0,0.00013972,2]
[333216093,1721950249639,-619.33,0.00013972,2]
[333216094,1721950249650,-500.0,0.00013972,2]
[333216096,1721950249660,-2003.25,0.00013972,2]
[333216098,1721950249672,-500.0,0.00013972,2]
[333216100,1721950249684,-500.0,0.00013972,2]
[333216102,1721950249696,-949.89,0.00013972,2]
[333216104,1721950249708,-779.25,0.00013972,2]
[333216105,1721950249718,-500.0,0.00013972,2]
[333216106,1721950249728,-500.0,0.00013972,2]
[333216108,1721950249737,-1306.29,0.00013972,2]
[333216110,1721950249747,-613.78,0.00013972,2]
[333216112,1721950249758,-500.0,0.00013972,2]
[333216114,1721950249768,-980.21,0.00013972,2]
[333216116,1721950249778,-665.13,0.00013972,2]
[333216118,1721950249788,-500.0,0.00013972,2]
[333216120,1721950249799,-1702.32,0.00013972,2]
[333216121,1721950249809,-717.82,0.00013972,2]
[333216122,1721950249819,-518.6958012,0.00013972,2]
[333216124,1721950249828,-500.0,0.00013972,2]
[333216126,1721950249840,-500.0,0.00013972,2]
[333216128,1721950249851,-512.62295558,0.00013972,2]
[333216130,1721950249862,-500.0,0.00013972,2]
[333216132,1721950249872,-559.36,0.00013972,2]
[333216134,1721950249883,-500.0,0.00013972,2]
[333216136,1721950249893,-662.66,0.00013972,2]
[333216138,1721950249904,-500.0,0.00013972,2]
[333216140,1721950249914,-509.6,0.00013972,2]
[333216142,1721950249926,-500.0,0.00013972,2]
[333216144,1721950249937,-802.77,0.00013972,2]
[333216146,1721950249947,-500.0,0.00013972,2]
[333216148,1721950249958,-1246.14,0.00013972,2]
[333216150,1721950249967,-534.15,0.00013972,2]
[333216152,1721950249977,-500.0,0.00013972,2]
[333216154,1721950249988,-682.27,0.00013972,2]
[333216156,1721950249998,-1181.92,0.00013972,2]
[333216158,1721950250008,-1486.1,0.00013972,2]
[333216160,1721950250018,-506.22981944,0.00013972,2]
[333216163,1721950250028,-500.0,0.00013972,2]
[333216165,1721950250039,-665.27,0.00013972,2]
[333216167,1721950250051,-500.0,0.00013972,2]
[333216169,1721950250062,-904.95,0.00013972,2]
[333216171,1721950250072,-1281.33,0.00013972,2]
[333216173,1721950250083,-500.0,0.00013972,2]
[333216176,1721950250095,-500.0,0.00013972,2]
[333216177,1721950250104,-500.0,0.00013972,2]
[333216180,1721950250114,-698.15,0.00013972,2]
[333216182,1721950250124,-500.0,0.00013972,2]
[333216184,1721950250135,-500.0,0.00013972,2]
[333216186,1721950250146,-1933.59,0.00013972,2]
[333216188,1721950250157,-1364.36,0.00013972,2]
[333216190,1721950250168,-505.78489223,0.00013972,2]
[333216192,1721950250177,-500.0,0.00013972,2]
[333216194,1721950250186,-1150.13,0.00013972,2]
[333216196,1721950250333,-500.0,0.00013972,2]
[333216197,1721950250343,-7202.94,0.00013972,2]
[333216199,1721950250353,-601.56,0.00013972,2]
[333216201,1721950250364,-469.52063947,0.00013972,2]
[333216203,1721950250374,-5993.65,0.00013972,2]
[333216205,1721950250384,-500.0,0.00013972,2]
[333216207,1721950250395,-3064.3,0.00013972,2]
[333216209,1721950250406,-500.0,0.00013972,2]
[333216212,1721950250416,-500.0,0.00013972,2]
[333216214,1721950250426,-500.0,0.00013972,2]
[333216216,1721950250435,-603.97,0.00013972,2]
[333216218,1721950250447,-500.0,0.00013972,2]
[333216220,1721950250459,-500.0,0.00013972,2]
[333216222,1721950250469,-1167.61,0.00013972,2]
[333216224,1721950250478,-500.0,0.00013972,2]
[333216226,1721950250490,-151.951543,0.00013999,2]
[333216229,1721950250501,-216.058348,0.00013999,2]
[333216231,1721950250511,-221.833811,0.00013999,2]
[333216233,1721950250522,-164.204342,0.00013999,2]
[333216235,1721950250534,-141902.68675552,0.00014,2]
[333216271,1721950250868,-7304.81619596,0.00014,2]
[333216290,1721950251035,-377389.08419837,0.00014,2]
[333216292,1721950251045,-1409.0,0.00014107,2]
[333216294,1721950251055,-150.0,0.00014107,2]
[333216296,1721950251064,-221.833811,0.00014174,2]
[333216298,1721950251075,-164.204342,0.00014174,2]
[333216300,1721950251086,-620.00524523,0.00014181,2]
[333216302,1721950251096,-500.0,0.00014246,2]
[333216304,1721950251106,-500.0,0.00014246,2]
[333216306,1721950251115,-500.0,0.00014246,2]
[333216308,1721950251124,-536.0,0.00014246,2]
[333216310,1721950251134,-500.0,0.00014246,2]
[333216312,1721950251144,-500.0,0.00014246,2]
[333216314,1721950251153,-881.29,0.00014246,2]
[333216316,1721950251162,-500.0,0.00014246,2]
[333216318,1721950251172,-525.45,0.00014246,2]
[333216320,1721950251182,-517.98,0.00014246,2]
[333216322,1721950251191,-500.0,0.00014246,2]
[333216324,1721950251201,-500.0,0.00014246,2]
[333216326,1721950251212,-500.0,0.00014246,2]
[333216328,1721950251222,-500.0,0.00014246,2]
[333216331,1721950251233,-500.0,0.00014246,2]
[333216333,1721950251243,-500.0,0.00014246,2]
[333216335,1721950251254,-500.0,0.00014246,2]
[333216337,1721950251265,-612.57,0.00014246,2]
[333216339,1721950251275,-500.0,0.00014246,2]
[333216341,1721950251286,-655.44,0.00014246,2]
[333216343,1721950251297,-805.41,0.00014246,2]
[333216345,1721950251308,-500.0,0.00014246,2]
[333216347,1721950251318,-634.54,0.00014246,2]
[333216349,1721950251328,-500.0,0.00014246,2]
[333216352,1721950251340,-500.0,0.00014246,2]
[333216354,1721950251351,-500.0,0.00014246,2]
[333216356,1721950251360,-500.0,0.00014246,2]
[333216358,1721950251369,-589.76,0.00014246,2]
[333216360,1721950251379,-500.0,0.00014246,2]
[333216362,1721950251388,-500.0,0.00014246,2]
[333216364,1721950251398,-968.18,0.00014246,2]
[333216366,1721950251408,-500.0,0.00014246,2]
[333216368,1721950251417,-251.39042943,0.00014246,2]
[333216370,1721950251427,-654.74,0.00014246,2]
[333216372,1721950251438,-610.2579469,0.00014246,2]
[333216374,1721950251447,-500.0,0.00014246,2]
[333216376,1721950251457,-500.0,0.00014246,2]
[333216379,1721950251467,-1129.43,0.00014246,2]
[333216381,1721950251479,-926.47,0.00014246,2]
[333216383,1721950251490,-500.0,0.00014246,2]
[333216385,1721950251501,-500.0,0.00014246,2]
[333216387,1721950251511,-500.0,0.00014246,2]
[333216389,1721950251521,-500.0,0.00014246,2]
[333216391,1721950251531,-500.0,0.00014246,2]
[333216393,1721950251545,-300.62457909,0.00014246,2]
[333216395,1721950251556,-918.54,0.00014246,2]
[333216397,1721950251566,-500.0,0.00014246,2]
[333216399,1721950251576,-437.12374577,0.00014246,2]
[333216401,1721950251587,-500.0,0.00014246,2]
[333216403,1721950251597,-1411.64,0.00014246,2]
[333216405,1721950251607,-706.06,0.00014246,2]
[333216407,1721950251620,-595.92,0.00014246,2]
[333216409,1721950251630,-904.91,0.00014246,2]
[333216411,1721950251640,-500.0,0.00014246,2]
[333216414,1721950251651,-592.93,0.00014246,2]
[333216416,1721950251661,-500.0,0.00014246,2]
[333216418,1721950251671,-500.0,0.00014246,2]
[333216420,1721950251687,-500.0,0.00014246,2]
[333216423,1721950251704,-889.21,0.00014246,2]
[333216426,1721950251719,-500.0,0.00014246,2]
[333216428,1721950251732,-500.0,0.00014246,2]
[333216430,1721950251743,-568.19,0.00014246,2]
[333216432,1721950251756,-500.0,0.00014246,2]
[333216435,1721950251769,-500.0,0.00014246,2]
[333216437,1721950251781,-296.4585456,0.00014246,2]
[333216439,1721950251795,-600.77,0.00014246,2]
[333216442,1721950251810,-869.46,0.00014246,2]
[333216444,1721950251824,-500.0,0.00014246,2]
[333216447,1721950251838,-500.0,0.00014246,2]
[333216449,1721950251852,-743.26,0.00014246,2]
[333216452,1721950251866,-500.0,0.00014246,2]
[333216454,1721950251879,-591.89,0.00014246,2]
[333216456,1721950251892,-500.0,0.00014246,2]
[333216459,1721950251906,-500.0,0.00014246,2]
[333216461,1721950251919,-500.0,0.00014246,2]
[333216463,1721950251932,-500.0,0.00014246,2]
[333216466,1721950251945,-500.0,0.00014246,2]
[333216468,1721950251958,-668.99,0.00014246,2]
[333216470,1721950251968,-500.0,0.00014246,2]
[333216472,1721950251981,-523.88,0.00014246,2]
[333216475,1721950251994,-827.49,0.00014246,2]
[333216477,1721950252007,-1049.66,0.00014246,2]
[333216479,1721950252020,-500.0,0.00014246,2]
[333216482,1721950252033,-555.68,0.00014246,2]
[333216484,1721950252046,-150.4388949,0.00014246,2]
[333216486,1721950252060,-500.0,0.00014246,2]
[333216489,1721950252073,-500.0,0.00014246,2]
[333216491,1721950252087,-500.0,0.00014246,2]
[333216494,1721950252100,-912.87,0.00014246,2]
[333216496,1721950252110,-1194.17,0.00014246,2]
[333216498,1721950252122,-1811.12,0.00014246,2]
[333216500,1721950252134,-500.0,0.00014246,2]
[333216503,1721950252146,-500.0,0.00014246,2]
[333216505,1721950252159,-500.0,0.00014246,2]
[333216507,1721950252172,-500.0,0.00014246,2]
[333216510,1721950252185,-580.38,0.00014246,2]
[333216512,1721950252195,-500.0,0.00014246,2]
[333216514,1721950252209,-500.0,0.00014246,2]
[333216516,1721950252221,-500.0,0.00014246,2]
[333216519,1721950252235,-545.35,0.00014246,2]
[333216522,1721950252249,-500.0,0.00014246,2]
[333216524,1721950252259,-583.84,0.00014246,2]
[333216526,1721950252273,-500.0,0.00014246,2]
[333216528,1721950252286,-1158.17,0.00014246,2]
[333216531,1721950252300,-658.3,0.00014246,2]
[333216533,1721950252313,-836.95,0.00014246,2]
[333216535,1721950252325,-461.81753424,0.00014246,2]
[333216538,1721950252340,-167.17585007,0.00014246,2]
[333216540,1721950252355,-1043.44,0.00014246,2]
[333216543,1721950252368,-772.12,0.00014246,2]
[333216545,1721950252382,-980.8,0.00014246,2]
[333216548,1721950252396,-500.0,0.00014246,2]
[333216550,1721950252410,-500.0,0.00014246,2]
[333216552,1721950252424,-730.91,0.00014246,2]
[333216555,1721950252436,-500.0,0.00014246,2]
[333216557,1721950252448,-500.0,0.00014246,2]
[333216559,1721950252462,-500.0,0.00014246,2]
[333216561,1721950252473,-500.0,0.00014246,2]
[333216563,1721950252484,-2118.18,0.00014246,2]
[333216566,1721950252495,-2232.57,0.00014246,2]
[333216568,1721950252508,-1024.46,0.00014246,2]
[333216570,1721950252521,-500.0,0.00014246,2]
[333216573,1721950252533,-1081.15,0.00014246,2]
[333216575,1721950252548,-4921.26,0.00014246,2]
[333216577,1721950252559,-500.0,0.00014246,2]
[333216579,1721950252572,-765.22,0.00014246,2]
[333216582,1721950252588,-500.0,0.00014246,2]
[333216584,1721950252599,-484.33365906,0.00014246,2]
[333216586,1721950252613,-1167.96,0.00014246,2]
[333216589,1721950252627,-1101.69,0.00014246,2]
[333216591,1721950252640,-892.29,0.00014246,2]
[333216594,1721950252655,-500.0,0.00014246,2]
[333216596,1721950252666,-619.33,0.00014246,2]
[333216598,1721950252679,-500.0,0.00014246,2]
[333216600,1721950252692,-2003.25,0.00014246,2]
[333216603,1721950252704,-500.0,0.00014246,2]
[333216605,1721950252718,-500.0,0.00014246,2]
[333216607,1721950252731,-949.89,0.00014246,2]
[333216608,1721950252744,-779.25,0.00014246,2]
[333216609,1721950252758,-570.88425661,0.00014246,2]
[333216610,1721950252770,-500.0,0.00014246,2]
[333216611,1721950252782,-1306.29,0.00014246,2]
[333216612,1721950252794,-613.78,0.00014246,2]
[333216613,1721950252807,-528.61808596,0.00014246,2]
[333216614,1721950252820,-980.21,0.00014246,2]
[333216615,1721950252835,-665.13,0.00014246,2]
[333216616,1721950252846,-500.0,0.00014246,2]
[333216617,1721950252857,-1702.32,0.00014246,2]
[333216619,1721950252868,-717.82,0.00014246,2]
[333216621,1721950252880,-559.36,0.00014246,2]
[333216623,1721950252893,-500.0,0.00014246,2]
[333216625,1721950252904,-662.66,0.00014246,2]
[333216628,1721950252917,-509.6,0.00014246,2]
[333216630,1721950252928,-500.0,0.00014246,2]
[333216632,1721950252939,-802.77,0.00014246,2]
[333216634,1721950252951,-500.0,0.00014246,2]
[333216637,1721950252963,-1246.14,0.00014246,2]
[333216639,1721950252974,-534.15,0.00014246,2]
[333216641,1721950252986,-500.0,0.00014246,2]
[333216643,1721950252998,-682.27,0.00014246,2]
[333216645,1721950253010,-1181.92,0.00014246,2]
[333216648,1721950253023,-1486.1,0.00014246,2]
[333216650,1721950253038,-500.0,0.00014246,2]
[333216653,1721950253051,-665.27,0.00014246,2]
[333216655,1721950253063,-500.0,0.00014246,2]
[333216657,1721950253076,-904.95,0.00014246,2]
[333216659,1721950253086,-1281.33,0.00014246,2]
[333216661,1721950253096,-500.0,0.00014246,2]
[333216663,1721950253106,-587.69629298,0.00014246,2]
[333216666,1721950253117,-500.0,0.00014246,2]
[333216668,1721950253128,-698.15,0.00014246,2]
[333216670,1721950253138,-500.0,0.00014246,2]
[333216672,1721950253149,-500.0,0.00014246,2]
[333216674,1721950253161,-1933.59,0.00014246,2]
[333216676,1721950253171,-1364.36,0.00014246,2]
[333216678,1721950253181,-500.0,0.00014246,2]
[333216680,1721950253190,-1150.13,0.00014246,2]
[333216682,1721950253200,-500.0,0.00014246,2]
[333216684,1721950253210,-7202.94,0.00014246,2]
[333216686,1721950253220,-601.56,0.00014246,2]
[333216688,1721950253230,-5993.65,0.00014246,2]
[333216690,1721950253240,-500.0,0.00014246,2]
[333216692,1721950253250,-3064.3,0.00014246,2]
[333216694,1721950253260,-390.68256212,0.00014246,2]
[333216696,1721950253270,-500.0,0.00014246,2]
[333216698,1721950253280,-500.0,0.00014246,2]
[333216700,1721950253290,-603.97,0.00014246,2]
[333216702,1721950253300,-500.0,0.00014246,2]
[333216704,1721950253310,-500.0,0.00014246,2]
[333216706,1721950253320,-1167.61,0.00014246,2]
[333216708,1721950253330,-500.0,0.00014246,2]
[333216710,1721950253341,-750.0,0.00014247,2]
[333216712,1721950253351,-221.833811,0.00014349,2]
[333216714,1721950253361,-164.204342,0.00014349,2]
[333216716,1721950253370,-95644.80718738,0.000144,2]
[333216753,1721950253719,-536.41,0.00010959,2]
[333216755,1721950253730,-2138.23232542,0.000144,2]
[333216758,1721950253741,-1024.37214939,0.000144,2]
[333216760,1721950253755,-1578.57847004,0.000144,2]
[333216762,1721950253766,-1331.88561713,0.0001448,2]
[333216764,1721950253779,-1868.11438287,0.0001448,2]
[333216767,1721950253790,-523.3520036,0.0001452,2]
[333216769,1721950253801,-101.03361353,0.0001452,2]
[333216771,1721950253814,-398.96638647,0.0001452,2]
[333216773,1721950253825,-53.48509896,0.0001452,2]
[333219317,1721950313582,-154.81751879,9.999e-05,2]
[333219318,1721950316185,-85.69833992,9.999e-05,2]
[333219319,1721950316211,-69.09269219,9.999e-05,2]
[333219320,1721950316849,-154.83739293,9.999e-05,2]
[333219321,1721950318031,-80.30224014,9.999e-05,2]
[333219322,1721950318054,-154.81751879,9.999e-05,2]
[333219323,1721950318078,-0.01987414,9.999e-05,2]
[333219324,1721950318616,-154.77115797,9.999e-05,2]
[333219325,1721950318640,-154.83739293,9.999e-05,2]
[333219326,1721950318665,-65.95714584,9.999e-05,2]
[333219328,1721950321101,-309.6085509,9.999e-05,2]
[333219329,1721950321124,-223.67172654,9.999e-05,2]
[333219330,1721950323330,-154.77115797,9.998e-05,2]
[333219331,1721950326954,-145.22884203,9.998e-05,2]
[333219332,1721950326977,-164.37970887,9.999e-05,2]
[333219333,1721950327592,-145.22884203,9.999e-05,2]
[333219334,1721950327615,-581.41354279,9.999e-05,2]
[333219335,1721950328168,-145.22884203,9.999e-05,2]
[333219336,1721950328190,-454.9051394,9.999e-05,2]
[333219337,1721950328778,-145.22884203,9.999e-05,2]
[333219338,1721950328803,-70.62617179,9.999e-05,2]
[333219339,1721950329315,-145.22884203,9.999e-05,2]
[333219340,1721950329337,-157.29928015,9.999e-05,2]
[333219342,1721950330378,-145.22884203,9.999e-05,2]